[Event "*** Titled Tuesday 3|2 Blitz"]
[Site "Chess.com"]
[Date "2016.05.03"]
[Round "6"]
[White "vovkcoach"]
[Black "Quinten94"]
[Result "1-0"]
[WhiteElo "2528"]
[BlackElo "2345"]
[TimeControl "180+2"]
[EndTime "12:15:30 PDT"]
[Termination "vovkcoach won by resignation"]

1. d4 {[%clk 0:03:01.9]} 1... d5 {[%clk 0:03:01]} 2. c4 {[%clk 0:03:02.6]} 2...
c6 {[%clk 0:03:02.4]} 3. Nf3 {[%clk 0:03:02.7]} 3... Nf6 {[%clk 0:03:03.5]} 4.
Nc3 {[%clk 0:03:03.8]} 4... dxc4 {[%clk 0:03:04.2]} 5. a4 {[%clk 0:03:04.3]}
5... Na6 {[%clk 0:03:05.3]} 6. e4 {[%clk 0:03:03.2]} 6... Bg4 {[%clk 0:03:06.3]}
7. Bxc4 {[%clk 0:03:04.1]} 7... Bxf3 {[%clk 0:03:07.6]} 8. gxf3 {[%clk 0:03:06]}
8... e6 {[%clk 0:03:08.7]} 9. O-O {[%clk 0:03:06.6]} 9... Nb4 {[%clk 0:03:09.9]}
10. a5 {[%clk 0:03:02.9]} 10... Be7 {[%clk 0:03:10.5]} 11. Be3 {[%clk
0:03:03.7]} 11... Qc7 {[%clk 0:03:08.7]} 12. f4 {[%clk 0:02:55.2]} 12... h6
{[%clk 0:03:00.6]} 13. Qf3 {[%clk 0:02:45.6]} 13... Nc2 {[%clk 0:02:37.8]} 14.
Rac1 {[%clk 0:02:44.5]} 14... Nxe3 {[%clk 0:02:37.3]} 15. fxe3 {[%clk
0:02:46.4]} 15... Qxa5 {[%clk 0:02:38.2]} 16. f5 {[%clk 0:02:41.4]} 16... e5
{[%clk 0:02:35.7]} 17. Qg3 {[%clk 0:02:38.5]} 17... Bd6 {[%clk 0:02:31.8]} 18.
Kh1 {[%clk 0:02:36.8]} 18... Rg8 {[%clk 0:02:28.3]} 19. Rcd1 {[%clk 0:02:32]}
19... Ke7 {[%clk 0:02:21.3]} 20. b4 {[%clk 0:02:26.3]} 20... Qc7 {[%clk
0:02:16.3]} 21. Qf2 {[%clk 0:02:08.9]} 21... Bxb4 {[%clk 0:02:15.5]} 22. Qb2
{[%clk 0:02:06.7]} 22... Bd6 {[%clk 0:02:14.5]} 23. Rc1 {[%clk 0:02:04.2]} 23...
Ng4 {[%clk 0:01:52.9]} 24. Qe2 {[%clk 0:01:56.8]} 24... h5 {[%clk 0:01:45.8]}
25. Ba2 {[%clk 0:01:46.3]} 25... Qa5 {[%clk 0:01:05.6]} 26. Rb1 {[%clk
0:01:08.3]} 26... Qxc3 {[%clk 0:00:55]} 27. Rxb7+ {[%clk 0:01:08.5]} 27... Kf6
{[%clk 0:00:47.3]} 28. Rxf7+ {[%clk 0:00:40.4]} 28... Kg5 {[%clk 0:00:47.5]} 29.
f6 {[%clk 0:00:24.6]} 29... g6 {[%clk 0:00:34]} 30. Rd7 {[%clk 0:00:11.5]} 30...
Rgd8 {[%clk 0:00:34.6]} 31. Rh7 {[%clk 0:00:08.6]} 31... Qxe3 {[%clk 0:00:32.4]}
32. Qg2 {[%clk 0:00:09.7]} 32... exd4 {[%clk 0:00:23.1]} 33. Be6 {[%clk
0:00:10.4]} 33... Rab8 {[%clk 0:00:16.9]} 34. h4+ {[%clk 0:00:11.3]} 1-0

[Event "*** Titled Tuesday 3|2 Blitz"]
[Site "Chess.com"]
[Date "2016.05.03"]
[Round "6"]
[White "rasool78"]
[Black "YaWaleriy"]
[Result "1-0"]
[WhiteElo "2189"]
[BlackElo "2174"]
[TimeControl "180+2"]
[EndTime "12:15:30 PDT"]
[Termination "rasool78 won on time"]

1. e4 {[%clk 0:03:01.9]} 1... e6 {[%clk 0:02:59.4]} 2. d4 {[%clk 0:03:01.3]}
2... d5 {[%clk 0:03:00.2]} 3. Nc3 {[%clk 0:03:02.8]} 3... Nf6 {[%clk 0:03:00.7]}
4. Bg5 {[%clk 0:03:02.3]} 4... dxe4 {[%clk 0:03:01.3]} 5. Nxe4 {[%clk
0:03:02.4]} 5... Be7 {[%clk 0:03:02.9]} 6. Bxf6 {[%clk 0:03:03]} 6... Bxf6
{[%clk 0:03:04.3]} 7. Nf3 {[%clk 0:03:03.5]} 7... Nd7 {[%clk 0:03:05.7]} 8. Bd3
{[%clk 0:03:03.6]} 8... O-O {[%clk 0:03:06.3]} 9. Qe2 {[%clk 0:02:55]} 9... Be7
{[%clk 0:03:06.3]} 10. O-O-O {[%clk 0:02:39.7]} 10... b6 {[%clk 0:03:06.2]} 11.
Kb1 {[%clk 0:02:20.8]} 11... Bb7 {[%clk 0:03:06.5]} 12. Ne5 {[%clk 0:02:15.6]}
12... Nf6 {[%clk 0:03:04.5]} 13. h4 {[%clk 0:01:57.6]} 13... Nxe4 {[%clk
0:02:00.6]} 14. Bxe4 {[%clk 0:01:56.3]} 14... Bxe4 {[%clk 0:02:00.6]} 15. Qxe4
{[%clk 0:01:57.7]} 15... Qd5 {[%clk 0:02:01.9]} 16. Qxd5 {[%clk 0:01:16.4]}
16... exd5 {[%clk 0:02:00.8]} 17. Nc6 {[%clk 0:01:16.1]} 17... Bf6 {[%clk
0:01:58.8]} 18. g3 {[%clk 0:01:12]} 18... Rfe8 {[%clk 0:01:54.7]} 19. Rhe1
{[%clk 0:01:12.4]} 19... a5 {[%clk 0:01:54.5]} 20. c3 {[%clk 0:01:03.3]} 20...
a4 {[%clk 0:01:37.2]} 21. Kc2 {[%clk 0:01:01.1]} 21... Kf8 {[%clk 0:01:36.2]}
22. Kd3 {[%clk 0:00:57.7]} 22... Re6 {[%clk 0:01:34.3]} 23. Rxe6 {[%clk
0:00:57]} 23... fxe6 {[%clk 0:01:34.3]} 24. Re1 {[%clk 0:00:50.3]} 24... Kf7
{[%clk 0:01:31.9]} 25. f4 {[%clk 0:00:44]} 25... h5 {[%clk 0:01:27.9]} 26. Re2
{[%clk 0:00:35.7]} 26... Rh8 {[%clk 0:01:21.8]} 27. Na7 {[%clk 0:00:27.3]} 27...
Ra8 {[%clk 0:01:14.2]} 28. Nb5 {[%clk 0:00:24.5]} 28... Rc8 {[%clk 0:01:12.8]}
29. c4 {[%clk 0:00:17.6]} 29... g6 {[%clk 0:01:06.9]} 30. c5 {[%clk 0:00:17.9]}
30... bxc5 {[%clk 0:01:01.3]} 31. dxc5 {[%clk 0:00:18.9]} 31... Ke7 {[%clk
0:00:54.2]} 32. c6 {[%clk 0:00:16]} 32... Rb8 {[%clk 0:00:34.5]} 33. Nxc7 {[%clk
0:00:15.4]} 1-0

[Event "*** Titled Tuesday 3|2 Blitz"]
[Site "Chess.com"]
[Date "2016.05.03"]
[Round "6"]
[White "Fariasov-inactive"]
[Black "FLchessplayer"]
[Result "1/2-1/2"]
[WhiteElo "2180"]
[BlackElo "2073"]
[TimeControl "180+2"]
[EndTime "12:15:32 PDT"]
[Termination "Game drawn by repetition"]

1. c4 {[%clk 0:03:01.9]} 1... g6 {[%clk 0:02:59.9]} 2. Nc3 {[%clk 0:03:02.8]}
2... Bg7 {[%clk 0:03:01]} 3. e4 {[%clk 0:03:03.8]} 3... d6 {[%clk 0:03:02.4]} 4.
Nge2 {[%clk 0:03:02.4]} 4... Nc6 {[%clk 0:02:38.8]} 5. d4 {[%clk 0:03:00.8]}
5... e5 {[%clk 0:02:31.5]} 6. d5 {[%clk 0:03:00.9]} 6... Nce7 {[%clk 0:02:31.9]}
7. Be3 {[%clk 0:02:55.6]} 7... h6 {[%clk 0:02:33]} 8. Qd2 {[%clk 0:02:56]} 8...
f5 {[%clk 0:02:33.8]} 9. exf5 {[%clk 0:02:56.9]} 9... gxf5 {[%clk 0:02:35]} 10.
f4 {[%clk 0:02:56.7]} 10... Nf6 {[%clk 0:02:33.5]} 11. h3 {[%clk 0:02:57.3]}
11... Nh5 {[%clk 0:02:31.9]} 12. O-O-O {[%clk 0:02:56.6]} 12... Ng6 {[%clk
0:02:28.4]} 13. g3 {[%clk 0:02:47.9]} 13... a6 {[%clk 0:02:27.8]} 14. Bg2 {[%clk
0:02:47.8]} 14... Rb8 {[%clk 0:02:28.2]} 15. Bf3 {[%clk 0:02:41.4]} 15... Nf6
{[%clk 0:02:27.2]} 16. fxe5 {[%clk 0:02:37.6]} 16... Nxe5 {[%clk 0:02:25.8]} 17.
Nd4 {[%clk 0:02:23.9]} 17... Nxc4 {[%clk 0:02:21]} 18. Qd3 {[%clk 0:02:22.8]}
18... Nxe3 {[%clk 0:02:20.3]} 19. Qxe3+ {[%clk 0:02:23.7]} 19... Kf7 {[%clk
0:02:21.3]} 20. Ne6 {[%clk 0:02:21.7]} 20... Qe7 {[%clk 0:02:18.2]} 21. Rhe1
{[%clk 0:02:18.6]} 21... Re8 {[%clk 0:02:18.6]} 22. Qf4 {[%clk 0:02:04.5]} 22...
Kg6 {[%clk 0:02:09.6]} 23. g4 {[%clk 0:01:55.3]} 23... fxg4 {[%clk 0:02:04.6]}
24. hxg4 {[%clk 0:01:43.6]} 24... Bxe6 {[%clk 0:02:03.2]} 25. dxe6 {[%clk
0:01:41.5]} 25... Kh7 {[%clk 0:02:00.3]} 26. g5 {[%clk 0:01:39.6]} 26... hxg5
{[%clk 0:02:01.2]} 27. Qf5+ {[%clk 0:01:37.6]} 27... Kg8 {[%clk 0:01:58.4]} 28.
Nd5 {[%clk 0:01:32.5]} 28... Nxd5 {[%clk 0:01:57.7]} 29. Bxd5 {[%clk 0:01:33.4]}
29... c6 {[%clk 0:01:59]} 30. Bb3 {[%clk 0:01:33.5]} 30... d5 {[%clk 0:02:00.3]}
31. Bc2 {[%clk 0:01:34.1]} 31... Bf6 {[%clk 0:01:55.9]} 32. Rh1 {[%clk
0:01:29.5]} 32... Rf8 {[%clk 0:01:50]} 33. Rh7 {[%clk 0:01:27.3]} 33... Bxb2+
{[%clk 0:01:40.8]} 34. Kxb2 {[%clk 0:01:28.3]} 34... Rxf5 {[%clk 0:01:41.8]} 35.
Rxe7 {[%clk 0:01:29.3]} 35... Re5 {[%clk 0:01:40.8]} 36. Bg6 {[%clk 0:01:23.5]}
36... b5 {[%clk 0:01:39.5]} 37. Rh1 {[%clk 0:01:17.5]} 37... Rf8 {[%clk
0:01:40]} 38. Rf7 {[%clk 0:01:11.1]} 38... Rxe6 {[%clk 0:01:33.7]} 39. Rxf8+
{[%clk 0:01:12.2]} 39... Kxf8 {[%clk 0:01:34.4]} 40. Bc2 {[%clk 0:01:08.8]}
40... Re2 {[%clk 0:01:30.3]} 41. Rh6 {[%clk 0:01:07.7]} 41... c5 {[%clk
0:01:29.7]} 42. Rxa6 {[%clk 0:01:05.9]} 42... d4 {[%clk 0:01:30.8]} 43. Kc1
{[%clk 0:01:01.6]} 43... c4 {[%clk 0:01:27.3]} 44. Rd6 {[%clk 0:00:56.4]} 44...
d3 {[%clk 0:01:27.3]} 45. Bxd3 {[%clk 0:00:54.6]} 45... cxd3 {[%clk 0:01:27.8]}
46. Rxd3 {[%clk 0:00:55.6]} 46... Rxa2 {[%clk 0:01:28.9]} 47. Rd5 {[%clk
0:00:56.8]} 47... Rg2 {[%clk 0:01:28.8]} 48. Rxb5 {[%clk 0:00:57.6]} 48... Kf7
{[%clk 0:01:30.1]} 49. Kd1 {[%clk 0:00:58.9]} 49... Kg6 {[%clk 0:01:30.7]} 50.
Ke1 {[%clk 0:01:00.3]} 50... Ra2 {[%clk 0:01:31.3]} 51. Kf1 {[%clk 0:01:00.1]}
51... Kh5 {[%clk 0:01:31.9]} 52. Kg1 {[%clk 0:00:59.8]} 52... Ra3 {[%clk
0:01:32.6]} 53. Kg2 {[%clk 0:01:00]} 53... Kh4 {[%clk 0:01:32.4]} 54. Rb8 {[%clk
0:00:59.1]} 54... Ra2+ {[%clk 0:01:30.7]} 55. Kg1 {[%clk 0:01:00.1]} 55... g4
{[%clk 0:01:28.8]} 56. Rb3 {[%clk 0:00:59.8]} 56... Rc2 {[%clk 0:01:27.2]} 57.
Kh1 {[%clk 0:01:00.2]} 57... Ra2 {[%clk 0:01:27.1]} 58. Kg1 {[%clk 0:01:01.2]}
58... Kg5 {[%clk 0:01:27.2]} 59. Rb5+ {[%clk 0:00:59.6]} 59... Kh4 {[%clk
0:01:28.3]} 60. Rb3 {[%clk 0:01:00.5]} 60... g3 {[%clk 0:01:26.5]} 61. Rb8
{[%clk 0:01:01]} 61... Kg4 {[%clk 0:01:27.2]} 62. Rg8+ {[%clk 0:01:01.3]} 62...
Kf3 {[%clk 0:01:28.6]} 63. Rf8+ {[%clk 0:01:02.5]} 63... Kg4 {[%clk 0:01:29.9]}
64. Rg8+ {[%clk 0:01:03.6]} 64... Kf3 {[%clk 0:01:31.3]} 65. Rf8+ {[%clk
0:01:04.6]} 65... Kg4 {[%clk 0:01:32.7]} 66. Rg8+ {[%clk 0:01:05.9]} 66... Kf3
{[%clk 0:01:34.1]} 67. Rf8+ {[%clk 0:01:07.2]} 67... Kg4 {[%clk 0:01:35.6]} 68.
Rg8+ {[%clk 0:01:08.6]} 68... Kh3 {[%clk 0:01:37.1]} 69. Rh8+ {[%clk 0:01:09.6]}
69... Kg4 {[%clk 0:01:38.3]} 70. Rg8+ {[%clk 0:01:11]} 1/2-1/2

[Event "*** Titled Tuesday 3|2 Blitz"]
[Site "Chess.com"]
[Date "2016.05.03"]
[Round "6"]
[White "GulamaliRises"]
[Black "Lupul_Cenusiu"]
[Result "0-1"]
[WhiteElo "2570"]
[BlackElo "2445"]
[TimeControl "180+2"]
[EndTime "12:15:43 PDT"]
[Termination "Lupul_Cenusiu won by resignation"]

1. e4 {[%clk 0:02:35.7]} 1... c5 {[%clk 0:03:00]} 2. d4 {[%clk 0:02:34.3]} 2...
cxd4 {[%clk 0:03:00.6]} 3. c3 {[%clk 0:02:34.7]} 3... Nf6 {[%clk 0:02:57.7]} 4.
e5 {[%clk 0:02:35.2]} 4... Nd5 {[%clk 0:02:58.7]} 5. Nf3 {[%clk 0:02:37.1]} 5...
e6 {[%clk 0:02:59.2]} 6. cxd4 {[%clk 0:02:37.6]} 6... d6 {[%clk 0:03:00.2]} 7.
Bc4 {[%clk 0:02:24.1]} 7... Nc6 {[%clk 0:02:57.4]} 8. O-O {[%clk 0:02:22.7]}
8... Be7 {[%clk 0:02:58]} 9. Bd2 {[%clk 0:02:14.3]} 9... O-O {[%clk 0:02:54.9]}
10. Nc3 {[%clk 0:02:15.5]} 10... Nb6 {[%clk 0:02:47.2]} 11. Bb3 {[%clk
0:02:06.8]} 11... d5 {[%clk 0:02:45.3]} 12. Bc2 {[%clk 0:02:02.6]} 12... Bd7
{[%clk 0:02:43]} 13. a3 {[%clk 0:01:47.4]} 13... Rc8 {[%clk 0:02:39]} 14. Bf4
{[%clk 0:01:47.8]} 14... Nc4 {[%clk 0:02:35.3]} 15. Qd3 {[%clk 0:01:48.3]} 15...
g6 {[%clk 0:02:36]} 16. Rab1 {[%clk 0:01:49]} 16... b5 {[%clk 0:02:26.8]} 17.
Bh6 {[%clk 0:01:42.5]} 17... Re8 {[%clk 0:02:25.4]} 18. Ne2 {[%clk 0:01:36.2]}
18... b4 {[%clk 0:02:22.1]} 19. a4 {[%clk 0:01:36.2]} 19... N6a5 {[%clk
0:02:17.9]} 20. g3 {[%clk 0:00:41.5]} 20... Qb6 {[%clk 0:02:01.7]} 21. h4 {[%clk
0:00:31.5]} 21... b3 {[%clk 0:02:02.7]} 22. Bd1 {[%clk 0:00:32.8]} 22... Bxa4
{[%clk 0:02:01.4]} 23. Nc3 {[%clk 0:00:34.1]} 23... Bd7 {[%clk 0:01:53.6]} 24.
Ng5 {[%clk 0:00:28]} 24... Nc6 {[%clk 0:01:40.8]} 25. Ne2 {[%clk 0:00:21.7]}
25... Bf8 {[%clk 0:01:17.2]} 26. Bxf8 {[%clk 0:00:17.9]} 26... Rxf8 {[%clk
0:01:18.1]} 27. h5 {[%clk 0:00:13.7]} 27... Nb4 {[%clk 0:01:01.8]} 28. Qf3
{[%clk 0:00:13.9]} 28... Nd2 {[%clk 0:00:46.1]} 29. Qf4 {[%clk 0:00:11.2]} 29...
Nxf1 {[%clk 0:00:43.8]} 30. Kxf1 {[%clk 0:00:08.7]} 30... Bb5 {[%clk 0:00:39.5]}
31. Qh4 {[%clk 0:00:09.9]} 31... Qc7 {[%clk 0:00:34.1]} 32. hxg6 {[%clk
0:00:10.6]} 32... fxg6 {[%clk 0:00:34.1]} 33. Nxe6 {[%clk 0:00:12.3]} 33... Qf7
{[%clk 0:00:34.1]} 34. Nxf8 {[%clk 0:00:13.8]} 34... Rxf8 {[%clk 0:00:34.3]} 35.
f4 {[%clk 0:00:15.7]} 35... Nc2 {[%clk 0:00:29.2]} 36. Kf2 {[%clk 0:00:16.3]}
36... Bxe2 {[%clk 0:00:29.3]} 37. Bxe2 {[%clk 0:00:18.2]} 37... Nxd4 {[%clk
0:00:30.4]} 38. Rd1 {[%clk 0:00:19.9]} 38... Nxe2 {[%clk 0:00:24.5]} 39. Kxe2
{[%clk 0:00:21.8]} 39... Qc7 {[%clk 0:00:25.5]} 40. Rd2 {[%clk 0:00:22.6]} 40...
Qc4+ {[%clk 0:00:25]} 41. Kf2 {[%clk 0:00:24.2]} 41... Qc1 {[%clk 0:00:24.9]}
42. Re2 {[%clk 0:00:24.1]} 42... Qc5+ {[%clk 0:00:22]} 43. Kg2 {[%clk
0:00:25.2]} 43... d4 {[%clk 0:00:23.4]} 44. e6 {[%clk 0:00:25.5]} 44... d3
{[%clk 0:00:20.2]} 45. Rf2 {[%clk 0:00:27]} 45... Qd5+ {[%clk 0:00:21]} 46. Kh3
{[%clk 0:00:27.5]} 46... Qxe6+ {[%clk 0:00:22.1]} 47. f5 {[%clk 0:00:28.3]}
47... Rxf5 {[%clk 0:00:22.5]} 0-1

[Event "*** Titled Tuesday 3|2 Blitz"]
[Site "Chess.com"]
[Date "2016.05.03"]
[Round "6"]
[White "Philofive"]
[Black "vinceyoung15"]
[Result "1-0"]
[WhiteElo "2360"]
[BlackElo "2142"]
[TimeControl "180+2"]
[EndTime "12:15:53 PDT"]
[Termination "Philofive won by resignation"]

1. d4 {[%clk 0:03:01.9]} 1... d5 {[%clk 0:02:59.4]} 2. Bg5 {[%clk 0:03:01.2]}
2... Nf6 {[%clk 0:02:56.5]} 3. e3 {[%clk 0:03:01.3]} 3... e6 {[%clk 0:02:55.5]}
4. c4 {[%clk 0:02:58.2]} 4... Be7 {[%clk 0:02:54.6]} 5. Nc3 {[%clk 0:02:58.9]}
5... h6 {[%clk 0:02:52.3]} 6. Bh4 {[%clk 0:02:59.2]} 6... O-O {[%clk 0:02:53.5]}
7. Nf3 {[%clk 0:02:59.8]} 7... b6 {[%clk 0:02:54.9]} 8. cxd5 {[%clk 0:02:59.8]}
8... Nxd5 {[%clk 0:02:55.6]} 9. Bxe7 {[%clk 0:03:00.6]} 9... Qxe7 {[%clk
0:02:56.5]} 10. Nxd5 {[%clk 0:03:01.7]} 10... exd5 {[%clk 0:02:57.3]} 11. Qb3
{[%clk 0:03:03.1]} 11... Be6 {[%clk 0:02:54.9]} 12. Rc1 {[%clk 0:03:03.6]} 12...
c5 {[%clk 0:02:55.2]} 13. Qa3 {[%clk 0:03:04.1]} 13... Nd7 {[%clk 0:02:54.5]}
14. Bb5 {[%clk 0:03:03.6]} 14... Rfc8 {[%clk 0:02:42.6]} 15. O-O {[%clk
0:03:03.4]} 15... Kf8 {[%clk 0:02:33.8]} 16. dxc5 {[%clk 0:02:56.7]} 16... Rxc5
{[%clk 0:02:25]} 17. Nd4 {[%clk 0:02:36.4]} 17... a6 {[%clk 0:01:50.4]} 18. Bxd7
{[%clk 0:02:29.3]} 18... Bxd7 {[%clk 0:01:47.3]} 19. Rfd1 {[%clk 0:02:20.1]}
19... Rxc1 {[%clk 0:01:38.7]} 20. Qxe7+ {[%clk 0:02:19]} 20... Kxe7 {[%clk
0:01:39.3]} 21. Rxc1 {[%clk 0:02:20.3]} 21... Kd6 {[%clk 0:01:35.8]} 22. Kf1
{[%clk 0:02:18.7]} 22... Rc8 {[%clk 0:01:32.5]} 23. Rxc8 {[%clk 0:02:17.9]}
23... Bxc8 {[%clk 0:01:33.5]} 24. Ke2 {[%clk 0:02:19.5]} 24... a5 {[%clk
0:01:29.6]} 25. Nb5+ {[%clk 0:02:14.3]} 25... Kc5 {[%clk 0:01:22.9]} 26. Nd4
{[%clk 0:02:13.4]} 26... Ba6+ {[%clk 0:01:18.4]} 27. Kd2 {[%clk 0:02:13.8]}
27... Bc8 {[%clk 0:01:18.3]} 28. Kc3 {[%clk 0:02:10.8]} 28... b5 {[%clk
0:01:16.5]} 29. Nb3+ {[%clk 0:02:10.8]} 29... Kb6 {[%clk 0:01:10.8]} 30. Kd4
{[%clk 0:02:11.7]} 30... Bb7 {[%clk 0:01:08]} 31. Nc5 {[%clk 0:02:05.8]} 31...
Bc6 {[%clk 0:01:03.3]} 32. Nd3 {[%clk 0:02:04.7]} 32... Kc7 {[%clk 0:00:48.5]}
33. Kc5 {[%clk 0:01:55.5]} 33... b4 {[%clk 0:00:48.3]} 34. g3 {[%clk 0:01:47.8]}
34... g5 {[%clk 0:00:47]} 35. Ne5 {[%clk 0:01:46]} 35... Be8 {[%clk 0:00:44]}
36. Kxd5 {[%clk 0:01:45.7]} 36... f6 {[%clk 0:00:44.4]} 37. Nc4 {[%clk
0:01:41.6]} 37... Bf7+ {[%clk 0:00:37.6]} 38. Kc5 {[%clk 0:01:42.6]} 38... Bxc4
{[%clk 0:00:32.4]} 39. Kxc4 {[%clk 0:01:43.6]} 39... Kc6 {[%clk 0:00:34]} 40. e4
{[%clk 0:01:40.6]} 40... g4 {[%clk 0:00:33.4]} 41. a3 {[%clk 0:01:37]} 41...
bxa3 {[%clk 0:00:22.1]} 42. bxa3 {[%clk 0:01:37.7]} 42... Kd6 {[%clk 0:00:23.4]}
43. Kb5 {[%clk 0:01:36.8]} 43... Ke5 {[%clk 0:00:24.3]} 44. Kxa5 {[%clk
0:01:38.1]} 44... Kxe4 {[%clk 0:00:26]} 45. Kb4 {[%clk 0:01:37.4]} 45... Kf3
{[%clk 0:00:27.3]} 46. a4 {[%clk 0:01:38.7]} 46... Kxf2 {[%clk 0:00:29]} 47. a5
{[%clk 0:01:40.3]} 47... Kg2 {[%clk 0:00:30.7]} 48. a6 {[%clk 0:01:41.8]} 48...
Kxh2 {[%clk 0:00:32.4]} 49. a7 {[%clk 0:01:43.2]} 49... Kxg3 {[%clk 0:00:33.8]}
50. a8=Q {[%clk 0:01:44.5]} 50... f5 {[%clk 0:00:35.1]} 51. Kc3 {[%clk
0:01:40.5]} 51... f4 {[%clk 0:00:35.4]} 52. Kd2 {[%clk 0:01:40.4]} 52... h5
{[%clk 0:00:34.7]} 53. Ke1 {[%clk 0:01:37.4]} 53... h4 {[%clk 0:00:35.2]} 54.
Kf1 {[%clk 0:01:35.1]} 54... h3 {[%clk 0:00:36.2]} 55. Qa2 {[%clk 0:01:32.5]}
55... f3 {[%clk 0:00:34]} 56. Kg1 {[%clk 0:01:25.9]} 56... Kf4 {[%clk
0:00:28.3]} 57. Qf7+ {[%clk 0:01:25]} 57... Kg3 {[%clk 0:00:27.1]} 58. Qc7+
{[%clk 0:01:25.3]} 58... Kh4 {[%clk 0:00:27.5]} 59. Kh2 {[%clk 0:01:18.7]} 59...
f2 {[%clk 0:00:22.6]} 60. Qg3+ {[%clk 0:01:18.1]} 60... Kg5 {[%clk 0:00:23.6]}
61. Qxf2 {[%clk 0:01:19]} 61... Kh5 {[%clk 0:00:25.2]} 62. Kg3 {[%clk
0:01:19.5]} 1-0

[Event "*** Titled Tuesday 3|2 Blitz"]
[Site "Chess.com"]
[Date "2016.05.03"]
[Round "6"]
[White "SmoothAsAHedgehog"]
[Black "AvitalBor"]
[Result "0-1"]
[WhiteElo "2523"]
[BlackElo "2370"]
[TimeControl "180+2"]
[EndTime "12:15:54 PDT"]
[Termination "AvitalBor won by resignation"]

1. Nf3 {[%clk 0:03:01.9]} 1... d5 {[%clk 0:02:58.9]} 2. c4 {[%clk 0:03:02.5]}
2... d4 {[%clk 0:02:59.3]} 3. b4 {[%clk 0:02:47.5]} 3... g6 {[%clk 0:02:49.5]}
4. d3 {[%clk 0:02:46]} 4... Bg7 {[%clk 0:02:50.9]} 5. g3 {[%clk 0:02:47.6]} 5...
e5 {[%clk 0:02:52.2]} 6. Bg2 {[%clk 0:02:49.2]} 6... Ne7 {[%clk 0:02:53.1]} 7.
O-O {[%clk 0:02:50.8]} 7... a5 {[%clk 0:02:52]} 8. b5 {[%clk 0:02:51.1]} 8... c5
{[%clk 0:02:52.6]} 9. bxc6 {[%clk 0:02:48.3]} 9... Nbxc6 {[%clk 0:02:53]} 10.
Na3 {[%clk 0:02:49.6]} 10... O-O {[%clk 0:02:50.9]} 11. Rb1 {[%clk 0:02:50.1]}
11... Nb4 {[%clk 0:02:48.9]} 12. Bd2 {[%clk 0:02:49.9]} 12... Nxa2 {[%clk
0:02:49.1]} 13. Qb3 {[%clk 0:02:35.7]} 13... Nc3 {[%clk 0:02:46.3]} 14. Bxc3
{[%clk 0:02:36.6]} 14... dxc3 {[%clk 0:02:48.2]} 15. Nb5 {[%clk 0:02:27]} 15...
Nc6 {[%clk 0:02:47.1]} 16. Nxc3 {[%clk 0:02:25.8]} 16... h6 {[%clk 0:02:36]} 17.
Nd5 {[%clk 0:02:23.4]} 17... a4 {[%clk 0:02:35.9]} 18. Qd1 {[%clk 0:02:22.3]}
18... a3 {[%clk 0:02:36.4]} 19. Nb6 {[%clk 0:02:14]} 19... Ra6 {[%clk
0:02:21.6]} 20. Nxc8 {[%clk 0:02:14.7]} 20... Qxc8 {[%clk 0:02:23.5]} 21. e4
{[%clk 0:02:09.4]} 21... Rd8 {[%clk 0:02:21.2]} 22. Qb3 {[%clk 0:02:07.3]} 22...
Bf8 {[%clk 0:02:15.7]} 23. Rfd1 {[%clk 0:01:42.3]} 23... Bc5 {[%clk 0:02:15.5]}
24. Rd2 {[%clk 0:01:37.5]} 24... Nd4 {[%clk 0:02:08.4]} 25. Nxd4 {[%clk
0:01:36.9]} 25... Bxd4 {[%clk 0:02:10.3]} 26. Ra2 {[%clk 0:01:38.2]} 26... Rb6
{[%clk 0:02:02.2]} 27. Qd1 {[%clk 0:01:33.9]} 27... Rxb1 {[%clk 0:01:56.2]} 28.
Qxb1 {[%clk 0:01:35.8]} 28... Bb2 {[%clk 0:01:57.5]} 29. Rxb2 {[%clk 0:01:22.9]}
29... axb2 {[%clk 0:01:57.7]} 30. Bf1 {[%clk 0:01:24.5]} 30... Qc5 {[%clk
0:01:53.8]} 31. Qxb2 {[%clk 0:01:24.4]} 31... b6 {[%clk 0:01:55.4]} 32. Kg2
{[%clk 0:01:25.3]} 32... Ra8 {[%clk 0:01:55.3]} 33. Be2 {[%clk 0:01:23]} 33...
Qd4 {[%clk 0:01:54.8]} 34. Qxd4 {[%clk 0:01:11]} 34... exd4 {[%clk 0:01:56.7]}
35. e5 {[%clk 0:01:10.9]} 35... Re8 {[%clk 0:01:21.7]} 36. f4 {[%clk 0:01:11.6]}
36... f6 {[%clk 0:01:23]} 37. Bf3 {[%clk 0:00:58.4]} 37... fxe5 {[%clk
0:01:23.6]} 38. Bc6 {[%clk 0:00:55.9]} 38... Re7 {[%clk 0:01:23.1]} 39. Kf3
{[%clk 0:00:52.2]} 39... exf4 {[%clk 0:01:24]} 40. Kxf4 {[%clk 0:00:54.1]} 40...
Kg7 {[%clk 0:01:24.8]} 41. h4 {[%clk 0:00:51]} 41... Kf6 {[%clk 0:01:25.7]} 42.
Be4 {[%clk 0:00:51.8]} 42... g5+ {[%clk 0:01:26.3]} 43. hxg5+ {[%clk 0:00:53]}
43... hxg5+ {[%clk 0:01:28.2]} 44. Kf3 {[%clk 0:00:53.9]} 44... Re8 {[%clk
0:01:17.6]} 45. Bh7 {[%clk 0:00:39.9]} 45... Re3+ {[%clk 0:01:13.3]} 46. Kg4
{[%clk 0:00:40.5]} 46... Re5 {[%clk 0:00:55.1]} 47. Kf3 {[%clk 0:00:37.4]} 47...
Re1 {[%clk 0:00:53.8]} 48. Be4 {[%clk 0:00:19.5]} 48... Re3+ {[%clk 0:00:54.3]}
49. Kg4 {[%clk 0:00:21.1]} 49... Rxe4+ {[%clk 0:00:54]} 50. dxe4 {[%clk
0:00:23]} 50... Ke5 {[%clk 0:00:53.6]} 51. Kxg5 {[%clk 0:00:18.6]} 51... d3
{[%clk 0:00:54.2]} 52. g4 {[%clk 0:00:18.6]} 52... d2 {[%clk 0:00:56.1]} 53. Kh6
{[%clk 0:00:20.5]} 53... d1=Q {[%clk 0:00:55.7]} 54. g5 {[%clk 0:00:22.4]} 54...
Qh1+ {[%clk 0:00:53.8]} 0-1